fUST/lending_fUST_20250119
["ID","MTS","AMOUNT","RATE_DAILY","PERIOD"]
[349505708,1737232246713,-500.0,0.00021917,3]
[349505709,1737232246723,-500.0,0.00021917,3]
[349505710,1737232246733,-500.0,0.00021917,3]
[349505711,1737232246743,-500.0,0.00021917,3]
[349505712,1737232246753,-497.34164121,0.00021917,3]
[349505713,1737232246762,-500.0,0.00021917,3]
[349505714,1737232246772,-500.0,0.00021917,3]
[349505715,1737232246781,-439.54668019,0.00021917,3]
[349505716,1737232246792,-500.0,0.00021917,3]
[349505717,1737232246801,-500.0,0.00021917,3]
[349505718,1737232246811,-500.0,0.00021917,3]
[349505719,1737232246820,-151.0,0.00021917,2]
[349505720,1737232246830,-151.0,0.00021917,2]
[349505721,1737232246840,-500.0,0.00021917,3]
[349505722,1737232246850,-500.0,0.00021917,3]
[349505723,1737232246859,-500.0,0.00021917,3]
[349505724,1737232246869,-500.0,0.00021917,3]
[349505725,1737232246879,-500.0,0.00021917,3]
[349505726,1737232246889,-500.0,0.00021917,3]
[349505727,1737232246897,-1000.0,0.00021917,3]
[349505728,1737232246907,-500.0,0.00021917,3]
[349505729,1737232246916,-500.0,0.00021917,3]
[349505730,1737232246926,-500.0,0.00021917,3]
[349505731,1737232246937,-500.0,0.00021917,3]
[349505732,1737232246949,-500.0,0.00021917,3]
[349505733,1737232246959,-500.0,0.00021917,3]
[349505734,1737232246969,-500.0,0.00021917,3]
[349505735,1737232246979,-500.0,0.00021917,3]
[349505736,1737232246989,-500.0,0.00021917,3]
[349505737,1737232246999,-500.0,0.00021917,3]
[349505738,1737232247009,-222.44,0.00021917,3]
[349505739,1737232247019,-500.0,0.00021917,3]
[349505740,1737232247029,-500.0,0.00021917,3]
[349505741,1737232247039,-500.0,0.00021917,3]
[349505742,1737232247049,-500.0,0.00021917,3]
[349505743,1737232247059,-500.0,0.00021917,3]
[349505744,1737232247069,-1665.52,0.00021917,3]
[349505745,1737232247078,-500.0,0.00021917,3]
[349505746,1737232247088,-500.0,0.00021917,3]
[349505747,1737232247099,-505.02949985,0.00021917,3]
[349505748,1737232247109,-500.0,0.00021917,3]
[349505749,1737232247118,-500.0,0.00021917,3]
[349505750,1737232247128,-500.0,0.00021917,3]
[349505751,1737232247138,-500.0,0.00021917,3]
[349505752,1737232247147,-500.0,0.00021917,3]
[349505753,1737232247156,-500.0,0.00021917,3]
[349505754,1737232247166,-500.0,0.00021917,3]
[349505755,1737232247175,-633.97855365,0.00021917,3]
[349505756,1737232247184,-500.0,0.00021917,3]
[349505757,1737232247195,-500.0,0.00021917,3]
[349505758,1737232247204,-500.0,0.00021917,3]
[349505759,1737232247213,-9.53375317,0.00021917,3]
[349505764,1737232738704,174.903868,0.0002411,120]
[349505765,1737232905962,2443.05369074,0.00025,120]
[349505766,1737232922508,500.0,0.00023016,120]
[349505767,1737232923260,500.0,0.00023016,120]
[349505768,1737232924035,500.0,0.00023016,120]
[349505769,1737232924794,500.0,0.00023016,120]
[349505770,1737232925547,500.0,0.00023016,120]
[349505771,1737232926660,500.0,0.00023016,120]
[349505772,1737232927418,500.0,0.00023016,120]
[349505773,1737232928188,500.0,0.00023016,120]
[349505774,1737232928965,500.0,0.00023016,120]
[349505775,1737232931538,500.0,0.00023016,120]
[349505776,1737232932274,500.0,0.00023016,120]
[349505777,1737232933010,500.0,0.00023016,120]
[349505778,1737232933756,500.0,0.00023016,120]
[349505779,1737232934510,500.0,0.00023016,120]
[349505780,1737232935260,500.0,0.00023016,120]
[349505781,1737232935999,500.0,0.00023016,120]
[349505782,1737232936741,500.0,0.00023016,120]
[349505783,1737232937477,500.0,0.00023016,120]
[349505784,1737232938582,500.0,0.00023016,120]
[349505785,1737232939415,500.0,0.00023016,120]
[349505786,1737232940172,500.0,0.00023016,120]
[349505787,1737232941670,500.0,0.00023016,120]
[349505788,1737232942428,500.0,0.00023016,120]
[349505789,1737232943197,500.0,0.00023016,120]
[349505790,1737232943982,500.0,0.00023016,120]
[349505791,1737232944736,500.0,0.00023016,120]
[349505792,1737232945490,500.0,0.00023016,120]
[349505793,1737232946242,500.0,0.00023016,120]
[349505794,1737232947024,500.0,0.00023016,120]
[349505795,1737232947791,500.0,0.00023016,120]
[349505796,1737232948550,500.0,0.00023016,120]
[349505797,1737232949321,500.0,0.00023016,120]
[349505798,1737232950069,500.0,0.00023016,120]
[349505799,1737232950858,500.0,0.00023016,120]
[349505800,1737232950890,160.0,0.00023363,120]
[349505801,1737232951603,500.0,0.00023016,120]
[349505802,1737232952778,500.0,0.00023016,120]
[349505803,1737232953523,500.0,0.00023016,120]
[349505804,1737232954284,500.0,0.00023016,120]
[349505805,1737232955029,500.0,0.00023016,120]
[349505806,1737232955891,500.0,0.00023016,120]
[349505807,1737232956547,500.0,0.00023016,120]
[349505808,1737232957287,500.0,0.00023016,120]
[349505809,1737232958412,500.0,0.00023016,120]
[349505810,1737232959213,500.0,0.00023016,120]
[349505811,1737232960319,500.0,0.00023016,120]
[349505812,1737232961087,500.0,0.00023016,120]
[349505813,1737232961850,500.0,0.00023016,120]
[349505814,1737232962627,500.0,0.00023016,120]
[349505815,1737232963375,500.0,0.00023016,120]
[349505816,1737232964133,500.0,0.00023016,120]
[349505817,1737232964883,500.0,0.00023016,120]
[349505818,1737232965634,500.0,0.00023016,120]
[349505819,1737232966406,500.0,0.00023016,120]
[349505820,1737232967145,500.0,0.00023016,120]
[349505821,1737232967900,500.0,0.00023016,120]
[349505822,1737232968640,500.0,0.00023016,120]
[349505823,1737232969385,500.0,0.00023016,120]
[349505824,1737232970141,500.0,0.00023016,120]
[349505825,1737232970930,500.0,0.00023016,120]
[349505826,1737232971886,500.0,0.00023016,120]
[349505827,1737232972464,500.0,0.00023016,120]
[349505828,1737232973268,500.0,0.00023016,120]
[349505829,1737232974067,500.0,0.00023016,120]
[349505830,1737232974851,500.0,0.00023016,120]
[349505831,1737232975608,500.0,0.00023016,120]
[349505832,1737232976350,500.0,0.00023016,120]
[349505833,1737232977102,500.0,0.00023016,120]
[349505834,1737232977840,500.0,0.00023016,120]
[349505835,1737232978587,500.0,0.00023016,120]
[349505836,1737232979759,500.0,0.00023016,120]
[349505837,1737232980512,500.0,0.00023016,120]
[349505838,1737232981274,500.0,0.00023016,120]
[349505839,1737232982025,500.0,0.00023016,120]
[349505840,1737232982900,500.0,0.00023016,120]
[349505841,1737232983656,500.0,0.00023016,120]
[349505842,1737232984407,500.0,0.00023016,120]
[349505843,1737232985156,500.0,0.00023016,120]
[349505844,1737232985905,500.0,0.00023016,120]
[349505845,1737232986700,500.0,0.00023016,120]
[349505846,1737232987391,500.0,0.00023016,120]
[349505847,1737232988300,500.0,0.00023016,120]
[349505848,1737232989077,500.0,0.00023016,120]
[349505849,1737232990561,500.0,0.00023016,120]
[349505850,1737232991313,500.0,0.00023016,120]
[349505851,1737232992060,500.0,0.00023016,120]
[349505852,1737232992830,500.0,0.00023016,120]
[349505853,1737232993578,500.0,0.00023016,120]
[349505854,1737232994327,500.0,0.00023016,120]
[349505855,1737232995107,500.0,0.00023016,120]
[349505856,1737232995863,500.0,0.00023016,120]
[349505857,1737232996616,500.0,0.00023016,120]
[349505858,1737232997441,500.0,0.00023016,120]
[349505859,1737232998185,500.0,0.00023016,120]
[349505860,1737232998940,500.0,0.00023016,120]
[349505861,1737233000042,500.0,0.00023016,120]
[349505862,1737233000821,500.0,0.00023016,120]
[349505863,1737233001562,500.0,0.00023016,120]
[349505864,1737233002317,500.0,0.00023016,120]
[349505865,1737233003479,500.0,0.00023016,120]
[349505866,1737233004244,500.0,0.00023016,120]
[349505867,1737233005010,500.0,0.00023016,120]
[349505868,1737233005778,500.0,0.00023016,120]
[349505869,1737233006531,500.0,0.00023016,120]
[349505870,1737233007278,500.0,0.00023016,120]
[349505871,1737233008070,500.0,0.00023016,120]
[349505872,1737233008818,500.0,0.00023016,120]
[349505873,1737233009677,613.56,0.00023016,120]
[349505874,1737233010762,160.0,0.00024813,120]
[349505875,1737233061932,164.250324,0.00013973,2]
[349505876,1737233071296,160.0,0.00024589,120]
[349505877,1737233075226,500.0,0.00023016,120]
[349505878,1737233075983,500.0,0.00023016,120]
[349505879,1737233077080,500.0,0.00023016,120]
[349505880,1737233077978,500.0,0.00023016,120]
[349505881,1737233103147,434.95372,0.00025,120]
[349505882,1737233106828,1732.98,0.0002359,120]
[349505883,1737233191270,160.0,0.00023162,120]
[349505884,1737233250750,160.0,0.00023641,120]
[349505885,1737233251129,-649.58602717,0.00020682,2]
[349505887,1737233310819,160.0,0.00022952,120]
[349505890,1737233370723,160.0,0.0002441,120]
[349505893,1737233430830,160.0,0.00024018,120]
[349505912,1737233432675,-300.0,0.00020681,2]
[349505913,1737233432684,-1033.5117912,0.00020682,2]
[349505920,1737233432785,-853.9555,0.00020682,2]
[349505930,1737233432869,-72.17622524,0.00020682,2]
[349506054,1737233438455,-7697.32983,0.00020682,2]
[349506055,1737233438509,-1883.47046116,0.00020682,2]
[349506056,1737233438568,-5289.57194203,0.00020682,2]
[349506057,1737233438577,-217.532402,0.00020906,2]
[349506058,1737233438586,-1723.96139144,0.00020916,2]
[349506059,1737233438596,-168.02645312,0.00021817,2]
[349506060,1737233438605,-194.18375351,0.000219,2]
[349506061,1737233438615,-500.0,0.00021917,3]
[349506062,1737233438624,-500.0,0.00021917,3]
[349506063,1737233438634,-177.62414897,0.00021917,3]
[349506064,1737233438644,-509.01477973,0.00021917,3]
[349506065,1737233438656,-500.0,0.00021917,3]
[349506066,1737233438666,-466.68,0.00021917,3]
[349506067,1737233438676,-500.0,0.00021917,3]
[349506068,1737233438686,-500.0,0.00021917,3]
[349506069,1737233438697,-500.0,0.00021917,3]
[349506070,1737233438706,-500.0,0.00021917,3]
[349506071,1737233438716,-500.0,0.00021917,3]
[349506072,1737233438726,-500.0,0.00021917,3]
[349506073,1737233438737,-500.0,0.00021917,3]
[349506074,1737233438746,-500.0,0.00021917,3]
[349506075,1737233438756,-500.0,0.00021917,3]
[349506076,1737233438767,-500.0,0.00021917,3]
[349506077,1737233438778,-500.0,0.00021917,3]
[349506078,1737233438788,-500.0,0.00021917,3]
[349506079,1737233438797,-500.0,0.00021917,3]
[349506080,1737233438807,-500.0,0.00021917,3]
[349506081,1737233438817,-500.0,0.00021917,3]
[349506082,1737233438827,-500.0,0.00021917,3]
[349506083,1737233438838,-500.0,0.00021917,3]
[349506084,1737233438848,-500.0,0.00021917,3]
[349506085,1737233438858,-500.0,0.00021917,3]
[349506086,1737233438867,-500.0,0.00021917,3]
[349506087,1737233438878,-500.0,0.00021917,3]
[349506088,1737233438887,-500.0,0.00021917,3]
[349506089,1737233438902,-500.0,0.00021917,3]
[349506090,1737233438912,-500.0,0.00021917,3]
[349506091,1737233438922,-211.22157896,0.00021917,3]
[349506092,1737233438933,-500.0,0.00021917,3]
[349506093,1737233438943,-107.34549209,0.00021917,3]
[349506094,1737233438956,-242.86977413,0.00021917,3]
[349506095,1737233438965,-500.0,0.00021917,2]
[349506096,1737233438978,-395.99890625,0.00021917,3]
[349506097,1737233438988,-500.0,0.00021917,3]
[349506098,1737233438997,-500.0,0.00021917,3]
[349506099,1737233439007,-514.37562518,0.00021917,3]
[349506100,1737233439016,-499.84441724,0.00021917,3]
[349506101,1737233439026,-500.0,0.00021917,3]
[349506102,1737233439036,-500.0,0.00021917,3]
[349506103,1737233439045,-500.0,0.00021917,3]
[349506104,1737233439054,-500.0,0.00021917,3]
[349506105,1737233439063,-321.46649436,0.00021917,3]
[349506106,1737233439073,-500.0,0.00021917,3]
[349506107,1737233439083,-500.0,0.00021917,3]
[349506108,1737233439092,-500.0,0.00021917,3]
[349506109,1737233439101,-500.0,0.00021917,3]
[349506110,1737233439111,-500.0,0.00021917,3]
[349506111,1737233439121,-500.0,0.00021917,3]
[349506112,1737233439130,-500.0,0.00021917,3]
[349506113,1737233439141,-500.0,0.00021917,3]
[349506114,1737233439150,-500.0,0.00021917,3]
[349506115,1737233439159,-647.59,0.00021917,3]
[349506116,1737233439169,-500.0,0.00021917,3]
[349506117,1737233439179,-500.0,0.00021917,3]
[349506118,1737233439189,-231.06172501,0.00021917,3]
[349506138,1737233440661,-268.93827499,0.00021917,3]
[349506139,1737233440671,-500.0,0.00021917,3]
[349506140,1737233440681,-500.0,0.00021917,3]
[349506141,1737233440691,-500.0,0.00021917,3]
[349506142,1737233440701,-500.0,0.00021917,3]
[349506143,1737233440711,-500.0,0.00021917,3]
[349506144,1737233440722,-500.0,0.00021917,3]
[349506145,1737233440731,-500.0,0.00021917,3]
[349506146,1737233440740,-500.0,0.00021917,3]
[349506147,1737233440750,-500.0,0.00021917,3]
[349506148,1737233440760,-500.0,0.00021917,3]
[349506149,1737233440769,-500.0,0.00021917,3]
[349506150,1737233440779,-1596.13,0.00021917,3]
[349506151,1737233440788,-500.0,0.00021917,3]
[349506152,1737233440797,-361.38851732,0.00021917,3]
[349506153,1737233440809,-138.61148268,0.00021917,3]
[349506154,1737233440819,-500.0,0.00021917,3]
[349506155,1737233440828,-500.0,0.00021917,3]
[349506156,1737233440838,-500.0,0.00021917,3]
[349506157,1737233440847,-500.0,0.00021917,3]
[349506158,1737233440856,-505.20119921,0.00021917,3]
[349506159,1737233440865,-500.0,0.00021917,3]
[349506160,1737233440875,-368.6005258,0.00021917,3]
[349506161,1737233441516,-131.3994742,0.00021917,3]
[349506162,1737233441527,-500.0,0.00021917,3]
[349506163,1737233441538,-500.0,0.00021917,3]
[349506164,1737233441549,-500.0,0.00021917,3]
[349506165,1737233441559,-500.0,0.00021917,3]
[349506166,1737233441571,-500.0,0.00021917,3]
[349506167,1737233441582,-500.0,0.00021917,3]
[349506168,1737233441593,-500.0,0.00021917,3]
[349506169,1737233441604,-500.0,0.00021917,3]
[349506170,1737233441615,-500.0,0.00021917,3]
[349506171,1737233441628,-538.57810268,0.00021917,3]
[349506172,1737233441639,-500.0,0.00021917,3]
[349506173,1737233441650,-150.0,0.00022,2]
[349506174,1737233441661,-1669.77511381,0.0002202,2]
[349506175,1737233441673,-635.98782014,0.00022054,3]
[349506176,1737233441685,-500.0,0.00022054,3]
[349506177,1737233441699,-639.11131401,0.00022054,3]
[349506178,1737233441710,-466.32280316,0.00022054,3]
[349506179,1737233441722,-561.97,0.00022054,2]
[349506180,1737233441734,-500.0,0.00022054,3]
[349506181,1737233441745,-570.66,0.00022054,3]
[349506182,1737233441757,-500.0,0.00022054,3]
[349506183,1737233441766,-500.0,0.00022054,3]
[349506184,1737233441776,-500.0,0.00022054,3]
[349506185,1737233441786,-185.88,0.00022054,3]
[349506186,1737233441796,-647.59,0.00022054,3]
[349506187,1737233441806,-500.0,0.00022054,3]
[349506188,1737233441815,-233.47,0.00022054,3]
[349506189,1737233441826,-500.0,0.00022054,3]
[349506190,1737233441836,-557.91523117,0.00022054,3]
[349506191,1737233441847,-1596.13,0.00022054,3]
[349506192,1737233441858,-500.0,0.00022054,3]
[349506193,1737233441871,-500.0,0.00022054,3]
[349506194,1737233441883,-500.0,0.00022054,3]
[349506195,1737233441897,-500.0,0.00022054,3]
[349506196,1737233441909,-500.0,0.00022054,3]
[349506197,1737233441921,-500.0,0.00022054,3]
[349506198,1737233441931,-500.15847683,0.00022054,3]
[349506199,1737233441943,-195.65960989,0.00022091,2]
[349506200,1737233441953,-706.5297228,0.000221,2]
[349506201,1737233441964,-500.0,0.00022191,3]
[349506202,1737233441975,-595.57,0.00022191,3]
[349506203,1737233441986,-500.0,0.00022191,3]
[349506204,1737233441996,-500.0,0.00022191,3]
[349506205,1737233442007,-647.59,0.00022191,3]
[349506206,1737233442018,-500.0,0.00022191,3]
[349506207,1737233442028,-235.62,0.00022191,3]
[349506208,1737233442040,-1596.13,0.00022191,3]
[349506209,1737233442050,-500.0,0.00022191,3]
[349506210,1737233442060,-500.0,0.00022191,3]
[349506211,1737233442070,-500.0,0.00022191,3]
[349506212,1737233442080,-526.99,0.00022191,3]
[349506213,1737233442091,-281.92,0.00022191,3]
[349506214,1737233442102,-1950.0,0.00022215,4]
[349506215,1737233442112,-500.0,0.00022262,2]
[349506216,1737233442122,-500.0,0.00022305,2]
[349506217,1737233442132,-364.794,0.0002232,2]
[349506218,1737233442142,-500.0,0.00022328,3]
[349506219,1737233442152,-500.0,0.00022328,3]
[349506220,1737233442163,-500.0,0.00022328,3]
[349506221,1737233442175,-647.59,0.00022328,3]
[349506222,1737233442185,-500.0,0.00022328,3]
[349506223,1737233442195,-1596.13,0.00022328,3]
[349506224,1737233442206,-500.0,0.00022328,3]
[349506225,1737233442216,-500.0,0.00022328,3]
[349506226,1737233442227,-268.77315334,0.00022328,3]
[349506227,1737233442237,-500.0,0.0002233,2]
[349506228,1737233442247,-500.0,0.0002233,2]
[349506229,1737233442257,-500.0,0.00022465,3]
[349506230,1737233442267,-515.63923005,0.00022465,3]
[349506231,1737233442278,-611.9,0.00022465,3]
[349506232,1737233442289,-647.59,0.00022465,3]
[349506233,1737233442299,-500.0,0.00022465,3]
[349506234,1737233442310,-1596.13,0.00022465,3]
[349506235,1737233442320,-430.92,0.00022465,3]
[349506236,1737233442332,-500.0,0.00022465,3]
[349506237,1737233442342,-420.0,0.00022504,2]
[349506238,1737233442353,-168.02645312,0.00022524,2]
[349506239,1737233442363,-150.0,0.000226,2]
[349506240,1737233442374,-500.0,0.00022602,3]
[349506241,1737233442385,-647.59,0.00022602,3]
[349506242,1737233442394,-500.0,0.00022602,3]
[349506243,1737233442406,-1596.13,0.00022602,3]
[349506244,1737233442417,-500.0,0.00022602,3]
[349506245,1737233442560,-500.0,0.00022739,3]
[349506246,1737233442571,-647.59,0.00022739,3]
[349506247,1737233442581,-149.31780654,0.00022739,7]
[349506266,1737233444104,-1.68219346,0.00022739,7]
[349506267,1737233444114,-500.0,0.00022739,3]
[349506268,1737233444124,-151.647036,0.00022739,7]
[349506269,1737233444133,-157.21224877,0.00022739,3]
[349506278,1737233490871,160.0,0.00024333,120]
[349506279,1737233524713,500.0,0.0002018,2]
[349506280,1737233550880,160.0,0.00024958,120]
[349506281,1737233670795,160.0,0.0002452,120]
[349506282,1737233697135,214.736069,0.0002411,120]
[349506283,1737233730944,160.0,0.00023158,120]
[349506284,1737233790777,160.0,0.00022951,120]
[349506285,1737233851322,160.0,0.00024111,120]
[349506286,1737233910843,160.0,0.00024801,120]
[349506287,1737233965605,167.494579,0.00013973,2]
[349506289,1737233971325,160.0,0.00023568,120]
[349506290,1737234090756,160.0,0.00023474,120]
[349506291,1737234150753,160.0,0.00023812,120]
[349506292,1737234210508,160.0,0.00024601,120]
[349506293,1737234270750,160.0,0.00024506,120]
[349506294,1737234331561,160.0,0.00024601,120]
[349506295,1737234390846,160.0,0.00023508,120]
[349506296,1737234429112,-330.7611528,0.00019891,2]
[349506297,1737234450734,160.0,0.00024283,120]
[349506298,1737234510749,160.0,0.00023418,120]
[349506304,1737234558083,-325.73884456,0.00019891,2]
[349506306,1737234571284,160.0,0.00024649,120]
[349506308,1737234630761,160.0,0.00023563,120]
[349506344,1737234631754,-323.051106,0.00021063,2]
[349506346,1737234631764,-9123.814645,0.0002111,2]
[349506348,1737234631773,-44.78424899,0.0002132,2]
[349506351,1737234631785,-1348.21575101,0.0002132,2]
[349506353,1737234631794,-369.446,0.000216,2]
[349506355,1737234631804,-500.0,0.00021917,3]
[349506357,1737234631813,-530.18403692,0.00021917,3]
[349506359,1737234631823,-500.0,0.00021917,2]
[349506361,1737234631832,-151.0,0.00022,2]
[349506363,1737234631841,-181.33967562,0.00022199,2]
[349506365,1737234631851,-500.0,0.00022221,3]
[349506367,1737234631861,-500.0,0.00022221,3]
[349506369,1737234631870,-500.0,0.00022298,3]
[349506371,1737234631879,-602.17,0.00022298,3]
[349506373,1737234631889,-500.0,0.00022298,3]
[349506375,1737234631898,-500.0,0.00022298,3]
[349506377,1737234631908,-500.0,0.00022298,3]
[349506379,1737234631917,-500.0,0.00022299,3]
[349506381,1737234631926,-500.0,0.00022299,3]
[349506383,1737234631935,-520.37,0.00022299,3]
[349506385,1737234631944,-363.5,0.00022299,3]
[349506387,1737234631954,-500.0,0.00022299,3]
[349506389,1737234631964,-500.0,0.00022299,3]
[349506391,1737234631973,-500.0,0.00022299,3]
[349506393,1737234631983,-500.0,0.00022299,3]
[349506395,1737234631992,-1433.55,0.00022299,3]
[349506397,1737234632001,-500.0,0.00022299,3]
[349506399,1737234632010,-500.0,0.00022299,3]
[349506401,1737234632019,-500.0,0.00022304,3]
[349506402,1737234632028,-500.0,0.00022304,3]
[349506403,1737234632038,-500.0,0.00022304,2]
[349506404,1737234632047,-500.0,0.00022304,3]
[349506405,1737234632057,-500.0,0.00022304,3]
[349506406,1737234632066,-500.0,0.00022304,3]
[349506407,1737234632075,-169.41,0.00022304,3]
[349506408,1737234632085,-500.0,0.00022304,3]
[349506409,1737234632095,-539.3950078,0.00022304,3]
[349506410,1737234632104,-367.512392,0.00022304,3]
[349506411,1737234632114,-500.0,0.00022304,3]
[349506412,1737234632124,-500.0,0.00022372,2]
[349506413,1737234632133,-500.0,0.00022397,3]
[349506414,1737234632143,-9235.15959831,0.0002243,2]
[349506415,1737234632153,-426.64,0.00022435,3]
[349506416,1737234632163,-500.0,0.00022435,3]
[349506417,1737234632172,-520.37,0.00022436,3]
[349506418,1737234632182,-500.0,0.00022436,3]
[349506419,1737234632191,-1433.55,0.00022436,3]
[349506420,1737234632200,-180.672,0.00022437,2]
[349506421,1737234632209,-500.0,0.00022441,3]
[349506422,1737234632218,-500.0,0.00022441,2]
[349506423,1737234632227,-181.33967561,0.00022447,2]
[349506424,1737234632237,-500.0,0.00022572,3]
[349506425,1737234632250,-520.37,0.00022573,3]
[349506426,1737234632259,-500.0,0.00022573,3]
[349506427,1737234632268,-1433.55,0.00022573,3]
[349506428,1737234632277,-252.43,0.00022578,3]
[349506429,1737234632286,-611.4,0.00022578,2]
[349506430,1737234632297,-150.0,0.000226,2]
[349506431,1737234632306,-181.33967561,0.00022696,2]
[349506432,1737234632315,-150.0,0.000227,2]
[349506433,1737234632326,-1528.2828884,0.00022701,2]
[349506434,1737234632335,-500.0,0.00022709,3]
[349506435,1737234632345,-520.37,0.0002271,3]
[349506436,1737234632356,-500.0,0.0002271,3]
[349506437,1737234632364,-1433.55,0.0002271,3]
[349506438,1737234632374,-500.0,0.00022846,3]
[349506439,1737234632384,-520.37,0.00022847,3]
[349506440,1737234632393,-440.45102003,0.00022847,3]
[349506441,1737234632403,-1062.63695405,0.00022847,3]
[349506442,1737234632416,-370.91304595,0.00022847,3]
[349506443,1737234632426,-2907.61557669,0.0002289,5]
[349506444,1737234632435,-1161.09152433,0.000229,3]
[349506445,1737234632444,-181.33967561,0.00022944,2]
[349506446,1737234632453,-233.93409514,0.00022958,3]
[349506447,1737234632462,-1161.09152404,0.00022969,3]
[349506448,1737234632471,-500.0,0.00022983,3]
[349506449,1737234632480,-520.37,0.00022984,3]
[349506450,1737234632490,-1433.55,0.00022984,3]
[349506451,1737234632499,-7438.69753278,0.00023,2]
[349506452,1737234632508,-1393.0,0.00023026,4]
[349506453,1737234632517,-395.0,0.00023038,2]
[349506454,1737234632526,-1161.09152404,0.00023038,3]
[349506455,1737234632535,-1161.09152404,0.00023107,3]
[349506456,1737234632544,-500.0,0.0002312,3]
[349506457,1737234632553,-310.11737838,0.00023121,3]
[349506469,1737234637618,-210.25262162,0.00023121,3]
[349506470,1737234637628,-1433.55,0.00023121,3]
[349506471,1737234637638,-195.65960988,0.00023158,2]
[349506472,1737234637647,-1161.09152404,0.00023176,3]
[349506473,1737234637657,-181.33967561,0.00023192,2]
[349506474,1737234637666,-214.5432881,0.00023205,2]
[349506475,1737234637676,-153.0,0.00023205,2]
[349506476,1737234637685,-313.5410801,0.00023205,2]
[349506477,1737234637695,-215.0156227,0.00023205,2]
[349506478,1737234637705,-314.9807476,0.00023205,2]
[349506479,1737234637715,-153.0,0.00023205,2]
[349506480,1737234637724,-153.0,0.00023205,2]
[349506481,1737234637733,-153.0,0.00023205,2]
[349506482,1737234637742,-150.0,0.00023211,2]
[349506483,1737234637752,-1161.09152404,0.00023245,3]
[349506484,1737234637761,-500.0,0.00023257,3]
[349506485,1737234637770,-520.37,0.00023258,3]
[349506486,1737234637780,-1433.55,0.00023258,3]
[349506487,1737234637789,-160.75,0.00023279,2]
[349506488,1737234637799,-150.0,0.00023279,2]
[349506489,1737234637808,-957.25218645,0.000233,2]
[349506490,1737234637818,-794.9006587,0.000233,2]
[349506491,1737234637834,-162.35152775,0.000233,2]
[349506492,1737234637848,-957.25218645,0.000233,2]
[349506493,1737234637858,-957.25218645,0.000233,2]
[349506494,1737234637868,-254.22272344,0.00023314,3]
[349506495,1737234637879,-906.8688006,0.00023314,3]
[349506496,1737234637891,-399.88386718,0.00023383,3]
[349506497,1737234637903,-761.20765686,0.00023383,3]
[349506498,1737234637913,-500.0,0.00023394,3]
[349506499,1737234637922,-520.37,0.00023395,3]
[349506500,1737234637932,-1433.55,0.00023395,3]